bitfinex/quotes_BTCUSD_20240810
["timestamp","ask_amount","ask_price","bid_price","bid_amount"]
[1723261086917,0.00831,60495.0,60494.0,1.10505979]
[1723261087335,0.00831,60495.0,60494.0,1.43567079]
[1723261088562,0.00831,60495.0,60494.0,1.10505979]
[1723261089985,0.00831,60495.0,60494.0,1.10461944]
[1723261093538,0.00831,60495.0,60494.0,1.10482724]
[1723261094561,0.00831,60495.0,60494.0,1.43543824]
[1723261094765,0.00831,60495.0,60494.0,1.50953552]
[1723261094965,0.00831,60495.0,60494.0,1.57863824]
[1723261095787,0.00831,60495.0,60494.0,1.46815292]
[1723261096129,0.00831,60495.0,60494.0,1.46615292]
[1723261096329,0.00831,60495.0,60494.0,1.76809214]
[1723261096570,0.00831,60495.0,60494.0,1.77609214]
[1723261096788,0.00331,60495.0,60494.0,1.47915292]
[1723261098313,0.00331,60495.0,60494.0,1.88106059]
[1723261098531,0.00331,60495.0,60494.0,1.62741394]
[1723261099463,0.00331,60495.0,60494.0,1.48915292]
[1723261099665,0.00331,60495.0,60494.0,1.80917817]
[1723261101366,0.00331,60495.0,60494.0,1.76571752]
[1723261101567,0.00331,60495.0,60494.0,1.80893062]
[1723261101893,0.00331,60495.0,60494.0,2.13954162]
[1723261103487,0.00331,60495.0,60494.0,2.84960957]
[1723261103665,0.00331,60495.0,60494.0,2.94960957]
[1723261104263,0.00331,60495.0,60494.0,2.80632194]
[1723261105851,0.00331,60495.0,60494.0,3.02548091]
[1723261106053,0.00331,60495.0,60494.0,3.17076854]
[1723261106395,0.00331,60495.0,60494.0,3.30872867]
[1723261107210,0.00331,60495.0,60494.0,3.30891448]
[1723261107416,0.00331,60495.0,60494.0,3.19889262]
[1723261108251,0.00331,60495.0,60494.0,3.05895435]
[1723261108444,0.00331,60495.0,60494.0,3.19725473]
[1723261108647,0.00331,60495.0,60494.0,3.19816883]
[1723261109183,0.00331,60495.0,60494.0,3.20016883]
[1723261109385,0.00331,60495.0,60494.0,2.98100986]
[1723261109585,0.00331,60495.0,60494.0,2.84270948]
[1723261110101,0.00331,60495.0,60494.0,2.97902248]
[1723261110595,0.00331,60495.0,60494.0,2.83573485]
[1723261110822,0.00331,60495.0,60494.0,2.84391934]
[1723261110991,0.00331,60495.0,60494.0,2.70002798]
[1723261111196,0.00331,60495.0,60494.0,2.69803423]
[1723261111477,0.00331,60495.0,60494.0,2.66803423]
[1723261112367,0.00331,60495.0,60494.0,2.66808453]
[1723261112568,0.00331,60495.0,60494.0,2.81202913]
[1723261113482,0.00331,60495.0,60494.0,2.81402913]
[1723261114247,0.00331,60495.0,60494.0,2.77062363]
[1723261114574,0.00331,60495.0,60494.0,2.95101381]
[1723261115434,0.00331,60495.0,60494.0,3.09101381]
[1723261116023,0.00331,60495.0,60494.0,3.19240482]
[1723261116241,0.00331,60495.0,60494.0,3.02841381]
[1723261117694,0.00331,60495.0,60494.0,3.02803061]
[1723261118404,0.00331,60495.0,60494.0,3.13142343]
[1723261119398,0.00331,60495.0,60494.0,3.01142343]
[1723261120721,0.00331,60495.0,60494.0,3.01342343]
[1723261121237,0.00331,60495.0,60494.0,2.7223613]
[1723261121544,0.00331,60495.0,60494.0,3.01484923]
[1723261121751,0.00331,60495.0,60494.0,2.57847084]
[1723261121950,0.00331,60495.0,60494.0,3.01292637]
[1723261122130,0.00331,60495.0,60494.0,3.07452637]
[1723261122327,0.00331,60495.0,60494.0,3.07652637]
[1723261122911,0.00331,60495.0,60494.0,3.06852637]
[1723261123113,0.00331,60495.0,60494.0,3.07752637]
[1723261123328,0.00331,60495.0,60494.0,3.10752637]
[1723261123532,0.00331,60495.0,60494.0,3.12052637]
[1723261123771,0.00331,60495.0,60494.0,3.10052637]
[1723261123977,0.00331,60495.0,60494.0,3.03492637]
[1723261124289,0.00331,60495.0,60494.0,3.25405464]
[1723261124491,0.00331,60495.0,60494.0,3.24605464]
[1723261124692,0.00331,60495.0,60494.0,3.33165464]
[1723261124980,0.00331,60495.0,60494.0,3.11452637]
[1723261125182,0.00331,60495.0,60494.0,3.11252637]
[1723261126100,0.00331,60495.0,60494.0,3.10352637]
[1723261126238,0.00331,60495.0,60494.0,3.11752637]
[1723261127500,0.00331,60495.0,60494.0,3.17752637]
[1723261128109,0.00331,60495.0,60494.0,2.87895002]
[1723261128319,0.00331,60495.0,60494.0,3.18639263]
[1723261130705,0.00331,60495.0,60494.0,3.20639263]
[1723261131424,0.00331,60495.0,60494.0,3.22639263]
[1723261131546,0.00331,60495.0,60494.0,3.11986921]
[1723261131745,0.00331,60495.0,60494.0,3.23441553]
[1723261132244,0.00331,60495.0,60494.0,2.93265475]
[1723261132446,0.00331,60495.0,60494.0,3.23440222]
[1723261133137,0.00331,60495.0,60494.0,3.21240222]
[1723261133462,0.00331,60495.0,60494.0,3.21250896]
[1723261133708,0.00331,60495.0,60494.0,3.23250896]
[1723261133906,0.00331,60495.0,60494.0,3.23450896]
[1723261134839,0.00331,60495.0,60494.0,3.21250896]
[1723261135051,0.00331,60495.0,60494.0,3.2136443]
[1723261135452,0.00331,60495.0,60494.0,3.1536443]
[1723261135641,0.00331,60495.0,60494.0,3.1396443]
[1723261135842,0.00331,60495.0,60494.0,3.1536443]
[1723261136259,0.00331,60495.0,60494.0,3.1416443]
[1723261136597,0.00331,60495.0,60494.0,3.1556443]
[1723261138498,0.00331,60495.0,60494.0,3.1509956]
[1723261139495,0.00331,60495.0,60494.0,3.1409956]
[1723261139696,0.00331,60495.0,60494.0,3.1609956]
[1723261139895,0.00331,60495.0,60494.0,3.3081699]
[1723261140478,0.00331,60495.0,60494.0,3.3281699]
[1723261140676,0.00331,60495.0,60494.0,3.32831895]
[1723261141175,0.00331,60495.0,60494.0,3.1682704]
[1723261141396,0.00331,60495.0,60494.0,3.31204322]
[1723261141598,0.00331,60495.0,60494.0,3.29804322]
[1723261141796,0.00331,60495.0,60494.0,3.31245223]
[1723261142219,0.00331,60495.0,60494.0,3.29845223]
[1723261142584,0.00331,60495.0,60494.0,3.31245223]
[1723261142712,0.00331,60495.0,60494.0,3.29913564]
[1723261142905,0.00331,60495.0,60494.0,3.30113564]
[1723261143102,0.00331,60495.0,60494.0,3.25728261]
[1723261143301,0.00331,60495.0,60494.0,3.38515444]
[1723261143521,0.00331,60495.0,60494.0,3.21783109]
[1723261146503,0.00331,60495.0,60494.0,3.21683109]
[1723261147303,0.00331,60495.0,60494.0,2.50683109]
[1723261147504,0.00331,60495.0,60494.0,3.23683109]
[1723261148109,0.00331,60495.0,60494.0,3.26485676]
[1723261151518,0.00331,60495.0,60494.0,3.25485676]
[1723261152038,0.00331,60495.0,60494.0,2.94357262]
[1723261152259,0.00331,60495.0,60494.0,3.25487939]
[1723261152844,0.00331,60495.0,60494.0,3.27487939]
[1723261153043,0.00331,60495.0,60494.0,3.25487939]
[1723261153251,0.00331,60495.0,60494.0,3.21071994]
[1723261153456,0.00331,60495.0,60494.0,3.27489052]
[1723261155184,0.00331,60495.0,60494.0,3.27485077]
[1723261155429,0.00331,60495.0,60494.0,3.35485077]
[1723261157745,0.00331,60495.0,60494.0,3.18065077]
[1723261157898,0.00331,60495.0,60494.0,3.19065077]
[1723261158621,0.00331,60495.0,60494.0,3.19061812]
[1723261159393,0.00331,60495.0,60494.0,3.10061812]
[1723261161470,0.00331,60495.0,60494.0,3.26794317]
[1723261161664,0.00331,60495.0,60494.0,3.26905123]
[1723261162055,0.00331,60495.0,60494.0,2.78519589]
[1723261162262,0.00331,60495.0,60494.0,3.26907163]
[1723261162520,0.14521,60495.0,60494.0,2.47284963]
[1723261162723,0.14521,60495.0,60494.0,2.56463798]
[1723261163029,0.14521,60495.0,60494.0,2.02616401]
[1723261163230,0.14521,60495.0,60494.0,1.92277119]
[1723261163433,0.14521,60495.0,60494.0,2.02617357]
[1723261163972,0.14521,60495.0,60494.0,1.90955645]
[1723261164177,0.14521,60495.0,60494.0,1.92355645]
[1723261164598,0.14521,60495.0,60494.0,1.75202815]
[1723261164804,0.14521,60495.0,60494.0,1.73802815]
[1723261165246,0.14521,60495.0,60494.0,1.75196699]
[1723261165479,0.14521,60495.0,60494.0,1.64095405]
[1723261165696,0.14521,60495.0,60494.0,1.62695455]
[1723261166134,0.14521,60495.0,60494.0,1.64095455]
[1723261166370,0.14521,60495.0,60494.0,1.42135649]
[1723261166575,0.14521,60495.0,60494.0,1.40735649]
[1723261166987,0.14521,60495.0,60494.0,1.39335649]
[1723261167316,0.14521,60495.0,60494.0,1.34891026]
[1723261167524,0.14521,60495.0,60494.0,1.36091026]
[1723261167964,0.14521,60495.0,60494.0,1.34891026]
[1723261168188,0.14521,60495.0,60494.0,1.35991026]
[1723261168367,0.14521,60495.0,60494.0,1.22327712]
[1723261168569,0.14521,60495.0,60494.0,1.21227712]
[1723261169146,0.00331,60495.0,60494.0,1.67028812]
[1723261169360,0.00331,60495.0,60494.0,2.14451341]
[1723261169923,0.00331,60495.0,60494.0,2.04111962]
[1723261171438,0.00331,60495.0,60494.0,2.14451364]
[1723261171648,0.00331,60495.0,60494.0,2.28591364]
[1723261172203,0.00331,60495.0,60494.0,2.89591364]
[1723261172660,0.00331,60495.0,60494.0,2.7249989]
[1723261172865,0.00331,60495.0,60494.0,2.89650666]
[1723261173109,0.00331,60495.0,60494.0,2.52752621]
[1723261173314,0.00331,60495.0,60494.0,2.89670549]
[1723261173440,0.00331,60495.0,60494.0,2.28670549]
[1723261173648,0.00331,60495.0,60494.0,2.60331649]
[1723261174047,0.00331,60495.0,60494.0,3.27431649]
[1723261174430,0.00331,60495.0,60494.0,3.30231649]
[1723261175278,0.00331,60495.0,60494.0,3.30031649]
[1723261176239,0.00331,60495.0,60494.0,2.81067204]
[1723261176465,0.00331,60495.0,60494.0,3.28577736]
[1723261176682,0.00331,60495.0,60494.0,3.29977736]
[1723261176887,0.00331,60495.0,60494.0,3.28577736]
[1723261177293,0.00331,60495.0,60494.0,3.29977736]
[1723261177692,0.00331,60495.0,60494.0,3.28777736]
[1723261177942,0.00331,60495.0,60494.0,3.28577736]
[1723261178107,0.00331,60495.0,60494.0,3.29977736]
[1723261178508,0.00331,60495.0,60494.0,3.28577736]
[1723261178958,0.00331,60495.0,60494.0,3.29977736]
[1723261179697,0.00331,60495.0,60494.0,2.81067204]
[1723261179892,0.00331,60495.0,60494.0,3.30198324]
[1723261180321,0.00331,60495.0,60494.0,3.32198324]
[1723261180525,0.00831,60497.0,60496.0,1.577]
[1723261180774,0.00831,60497.0,60496.0,3.09652014]
[1723261181089,0.00831,60497.0,60496.0,3.26367575]
[1723261181654,0.00831,60497.0,60496.0,3.27767575]
[1723261182488,0.00831,60497.0,60496.0,3.11052014]
[1723261183329,0.00831,60497.0,60496.0,3.10946786]
[1723261183461,0.00831,60497.0,60496.0,3.12346786]
[1723261183660,0.00831,60497.0,60496.0,2.63520894]
[1723261183865,0.00831,60497.0,60496.0,3.12346786]
[1723261184874,0.00831,60497.0,60496.0,3.13346786]
[1723261185954,0.00831,60497.0,60496.0,3.14313079]
[1723261186425,0.00831,60497.0,60496.0,3.1431308]
[1723261187164,0.00831,60497.0,60496.0,3.14316741]
[1723261190664,0.00831,60497.0,60496.0,2.65485866]
[1723261190890,0.00831,60497.0,60496.0,3.14198384]
[1723261195162,0.00831,60497.0,60496.0,3.14622005]
[1723261195430,0.00831,60497.0,60496.0,3.14422005]
[1723261195626,0.00831,60497.0,60496.0,3.53882005]
[1723261195774,0.00831,60497.0,60496.0,3.70394502]
[1723261196044,0.00831,60497.0,60496.0,3.76758854]
[1723261196386,0.00831,60497.0,60496.0,3.60046357]
[1723261196812,0.00831,60497.0,60496.0,3.7675658]
[1723261197434,0.00831,60497.0,60496.0,3.4369658]
[1723261197676,0.00831,60497.0,60496.0,3.37532228]
[1723261198248,0.00831,60497.0,60496.0,3.38158389]
[1723261198879,0.00831,60497.0,60496.0,3.27958389]
[1723261199082,0.00831,60497.0,60496.0,2.96318166]
[1723261200147,0.00831,60497.0,60496.0,3.06318166]
[1723261201406,0.00831,60497.0,60496.0,3.06361285]
[1723261203374,0.00831,60497.0,60496.0,3.07361285]
[1723261204189,0.00831,60497.0,60496.0,3.07561285]
[1723261204732,0.00831,60497.0,60496.0,3.07361285]
[1723261204935,0.00831,60497.0,60496.0,3.07414571]
[1723261205499,0.00831,60497.0,60496.0,2.74705529]
[1723261205745,0.00831,60497.0,60496.0,3.07401209]
[1723261207172,0.00831,60497.0,60496.0,3.12401209]
[1723261207826,0.00831,60497.0,60496.0,3.09101209]
[1723261207827,0.08531,60497.0,60496.0,3.09101209]
[1723261208045,0.14821,60497.0,60496.0,3.20441209]
[1723261208447,0.14821,60497.0,60496.0,2.70595866]
[1723261208599,0.14821,60497.0,60496.0,3.20313325]
[1723261212105,0.14821,60497.0,60496.0,2.17253325]
[1723261212303,0.00831,60497.0,60496.0,2.88419894]
[1723261213225,0.00831,60497.0,60496.0,2.88426143]
[1723261215596,0.00831,60497.0,60496.0,2.72619402]
[1723261215825,0.00831,60497.0,60496.0,2.88376055]
[1723261215970,0.00831,60497.0,60496.0,2.38535866]
[1723261216180,0.00831,60497.0,60496.0,2.75254939]
[1723261216383,0.00831,60497.0,60496.0,2.87790302]
[1723261218612,0.14821,60497.0,60496.0,2.15899428]
[1723261218834,0.14821,60497.0,60496.0,1.83189692]
[1723261219064,0.14821,60497.0,60496.0,1.94334095]
[1723261219760,0.14821,60497.0,60496.0,1.91534095]
[1723261219974,0.14821,60497.0,60496.0,1.92934095]
[1723261220437,0.14821,60497.0,60496.0,1.91534095]
[1723261220879,0.14821,60497.0,60496.0,1.92934095]
[1723261221316,0.14821,60497.0,60496.0,1.94334095]
[1723261221531,0.00831,60497.0,60496.0,2.00904095]
[1723261221854,0.00831,60497.0,60496.0,2.36541504]
[1723261222495,0.00831,60497.0,60496.0,2.36578703]
[1723261222906,0.00831,60497.0,60496.0,3.1917557]
[1723261226030,0.00831,60497.0,60496.0,3.02090277]
[1723261226244,0.00831,60497.0,60496.0,3.19241303]
[1723261226444,0.00831,60497.0,60496.0,2.86286766]
[1723261226723,0.00831,60497.0,60496.0,3.19240568]
[1723261226925,0.00831,60497.0,60496.0,3.05240568]
[1723261229825,0.00831,60497.0,60496.0,2.5513574]
[1723261230036,0.00831,60497.0,60496.0,2.91116429]
[1723261230929,0.00831,60497.0,60496.0,3.05116429]
[1723261233811,0.00831,60497.0,60496.0,3.05070299]
[1723261234796,0.00831,60497.0,60496.0,2.99070299]
[1723261237607,0.00831,60497.0,60496.0,2.82075735]
[1723261237813,0.00831,60497.0,60496.0,2.99226717]
[1723261238129,0.00831,60497.0,60496.0,2.99221066]
[1723261238798,0.00831,60497.0,60496.0,2.18221066]
[1723261239014,0.00831,60497.0,60496.0,2.84221066]
[1723261241476,0.00831,60497.0,60496.0,2.62668982]
[1723261241672,0.00831,60497.0,60496.0,2.84210225]
[1723261242808,0.00831,60497.0,60496.0,2.92210225]
[1723261245394,0.00831,60497.0,60496.0,2.70557011]
[1723261245599,0.00831,60497.0,60496.0,2.92096919]
[1723261246856,0.00831,60497.0,60496.0,2.82096919]
[1723261249113,0.00831,60497.0,60496.0,2.35906083]
[1723261249288,0.00831,60497.0,60496.0,2.80535334]
[1723261249489,0.00831,60497.0,60496.0,2.34506083]
[1723261249692,0.00831,60497.0,60496.0,2.81875453]
[1723261250092,0.00831,60497.0,60496.0,2.80475453]
[1723261250296,0.00831,60497.0,60496.0,2.79075453]
[1723261250506,0.00831,60497.0,60496.0,2.81875453]
[1723261250699,0.00831,60497.0,60496.0,2.17875453]
[1723261250900,0.00831,60497.0,60496.0,2.88475453]
[1723261251198,0.00831,60497.0,60496.0,2.89875453]
[1723261254539,0.00831,60497.0,60496.0,2.98125453]
[1723261254760,0.00831,60497.0,60496.0,2.26125453]
[1723261254989,0.00831,60497.0,60496.0,3.00255453]
[1723261256335,0.00831,60497.0,60496.0,2.54279623]
[1723261256514,0.00831,60497.0,60496.0,3.00292947]
[1723261257158,0.00831,60497.0,60496.0,2.94162947]
[1723261257363,0.00831,60497.0,60496.0,2.85912947]
[1723261258714,0.00831,60497.0,60496.0,2.17912947]
[1723261258921,0.00831,60497.0,60496.0,2.82912947]
[1723261259914,0.00831,60497.0,60496.0,2.82777772]
[1723261260361,0.00831,60497.0,60496.0,2.82764363]
[1723261262666,0.00831,60497.0,60496.0,2.82768194]
[1723261262859,0.00831,60497.0,60496.0,2.79768194]
[1723261265614,0.00831,60497.0,60496.0,2.87818194]
[1723261265821,0.00831,60497.0,60496.0,2.60867389]
[1723261266056,0.00831,60497.0,60496.0,2.93953664]
[1723261266956,0.00831,60497.0,60496.0,3.00953664]
[1723261267357,0.00831,60497.0,60496.0,2.94823664]
[1723261269310,0.00831,60497.0,60496.0,3.00994185]
[1723261269903,0.00831,60497.0,60496.0,3.01000926]
[1723261270738,0.00831,60497.0,60496.0,2.98000926]
[1723261271135,0.00831,60497.0,60496.0,2.98034188]
[1723261273600,0.00831,60497.0,60496.0,3.48034341]
[1723261273829,0.00831,60497.0,60496.0,3.14974341]
[1723261274331,0.00831,60497.0,60496.0,3.14956818]
[1723261274531,0.00831,60497.0,60496.0,3.48016818]
[1723261274989,0.00831,60497.0,60496.0,2.97286818]
[1723261275204,0.00831,60497.0,60496.0,2.83836665]
[1723261276296,0.00831,60497.0,60496.0,0.52305435]
[1723261276297,0.15431,60497.0,60496.0,0.52305435]
[1723261276515,0.15431,60497.0,60496.0,0.62827193]
[1723261276710,0.15431,60497.0,60496.0,0.31957173]
[1723261277293,0.15431,60497.0,60496.0,0.30557173]
[1723261277491,0.15431,60497.0,60496.0,0.29157173]
[1723261277711,0.15431,60497.0,60496.0,0.30057173]
[1723261277910,0.15431,60497.0,60496.0,0.31157173]
[1723261278159,0.15431,60497.0,60496.0,0.30057173]
[1723261278366,0.15431,60497.0,60496.0,0.31057173]
[1723261278569,1.03977158,60497.0,60496.0,0.14675681]
[1723261278917,1.03977158,60497.0,60496.0,0.019]
[1723261278918,1.04977158,60497.0,60496.0,0.019]
[1723261279702,1.03977158,60497.0,60496.0,0.009]
[1723261279909,1.04977158,60497.0,60496.0,0.009]
[1723261280138,1.03986385,60497.0,60496.0,0.017]
[1723261280299,1.03986385,60497.0,60496.0,0.009]
[1723261280504,0.9697,60496.0,60495.0,0.0009141]
[1723261280698,1.02876885,60496.0,60495.0,0.0009141]
[1723261280921,0.9697,60496.0,60495.0,0.0009141]
[1723261282934,0.6391,60496.0,60495.0,0.0029141]
[1723261283591,0.6391,60496.0,60495.0,0.0059141]
[1723261284986,0.3085,60496.0,60495.0,0.0059141]
[1723261285388,0.1432,60496.0,60495.0,0.33503102]
[1723261285751,0.1432,60496.0,60495.0,0.66563602]
[1723261287264,0.1432,60496.0,60495.0,0.79429085]
[1723261287805,0.1432,60496.0,60495.0,0.79428697]
[1723261288005,0.00831,60497.0,60496.0,0.8265]
[1723261288227,0.00831,60497.0,60496.0,1.23236587]
[1723261289936,0.00831,60497.0,60496.0,1.30671899]
[1723261290576,0.00831,60497.0,60496.0,1.31071899]
[1723261291197,0.00831,60497.0,60496.0,1.3149409]
[1723261291374,0.00831,60497.0,60496.0,1.31476162]
[1723261291571,0.00831,60497.0,60496.0,1.57118778]
[1723261291777,0.00831,60497.0,60496.0,1.65428778]
[1723261292766,0.00831,60497.0,60496.0,1.75318623]
[1723261293780,0.00831,60497.0,60496.0,1.74918623]
[1723261294054,0.00831,60497.0,60496.0,1.74518573]
[1723261294212,0.00831,60497.0,60496.0,1.78291084]
[1723261294439,0.00831,60497.0,60496.0,1.79491084]
[1723261294629,0.00831,60497.0,60496.0,1.78191084]
[1723261294803,0.00831,60497.0,60496.0,1.66028778]
[1723261295205,0.00831,60497.0,60496.0,1.79863741]
[1723261295471,0.00831,60497.0,60496.0,1.67501435]
[1723261296372,0.00831,60497.0,60496.0,1.67514856]
[1723261297348,0.00831,60497.0,60496.0,1.86751389]
[1723261298250,0.00831,60497.0,60496.0,1.86729625]
[1723261300259,0.00831,60497.0,60496.0,2.51729625]
[1723261300602,0.00831,60497.0,60496.0,2.61729625]
[1723261300808,0.00831,60497.0,60496.0,2.61728082]
[1723261301080,0.00831,60497.0,60496.0,2.77885831]
[1723261301223,0.00831,60497.0,60496.0,2.61728082]
[1723261301419,0.00831,60497.0,60496.0,2.63052606]
[1723261301624,0.00831,60497.0,60496.0,2.63041881]
[1723261301974,0.00831,60497.0,60496.0,2.6172284]
[1723261304273,0.00831,60497.0,60496.0,2.77875437]
[1723261304426,0.00831,60497.0,60496.0,2.77876083]
[1723261304990,0.00831,60497.0,60496.0,2.44375502]
[1723261305187,0.00831,60497.0,60496.0,2.7792843]
[1723261305419,0.00831,60497.0,60496.0,2.77928061]
[1723261305611,0.00831,60497.0,60496.0,2.77891968]
[1723261306111,0.00831,60497.0,60496.0,2.76491968]
[1723261306522,0.00831,60497.0,60496.0,2.77891968]
[1723261306752,0.00831,60497.0,60496.0,2.75091968]
[1723261306907,0.00831,60497.0,60496.0,2.76491968]
[1723261307109,0.00831,60497.0,60496.0,2.77891968]
[1723261307326,0.00831,60497.0,60496.0,2.6173152]
[1723261307536,0.00831,60497.0,60496.0,2.6033152]
[1723261307729,0.00831,60497.0,60496.0,2.6173152]
[1723261307934,0.00831,60497.0,60496.0,2.46891028]
[1723261308364,0.00831,60497.0,60496.0,2.61724669]
[1723261308514,0.00831,60497.0,60496.0,2.40460201]
[1723261308731,0.00831,60497.0,60496.0,2.21231492]
[1723261308986,0.00831,60497.0,60496.0,2.34158307]
[1723261311178,0.00831,60497.0,60496.0,2.50292393]
[1723261312022,0.00831,60497.0,60496.0,1.85292393]
[1723261312170,0.00831,60497.0,60496.0,1.8525058]
[1723261313173,0.00831,60497.0,60496.0,1.89639465]
[1723261313515,0.00831,60497.0,60496.0,1.89642761]
[1723261313665,0.00831,60497.0,60496.0,1.8525058]
[1723261313874,0.00831,60497.0,60496.0,1.89642878]
[1723261314471,0.00831,60497.0,60496.0,2.03672878]
[1723261315711,0.00831,60497.0,60496.0,2.03818919]
[1723261316110,0.00831,60497.0,60496.0,2.46261492]
[1723261316291,0.00831,60497.0,60496.0,2.79818879]
[1723261317508,0.00831,60497.0,60496.0,2.79782636]
[1723261318086,0.00831,60497.0,60496.0,2.96934238]
[1723261318894,0.00831,60497.0,60496.0,2.79782636]
[1723261319098,0.00831,60497.0,60496.0,2.73980521]
[1723261319300,0.00831,60497.0,60496.0,2.7838575]
[1723261319722,0.00831,60497.0,60496.0,2.7698575]
[1723261320122,0.00831,60497.0,60496.0,2.7838575]
[1723261320353,0.00831,60497.0,60496.0,2.7978575]
[1723261320930,0.00831,60497.0,60496.0,2.7838575]
[1723261321194,0.00831,60497.0,60496.0,2.7978575]
[1723261321634,0.00831,60497.0,60496.0,2.7978319]
[1723261322265,0.00831,60497.0,60496.0,2.96935134]
[1723261322695,0.00831,60497.0,60496.0,2.7376319]
[1723261323347,0.00831,60497.0,60496.0,2.9091517]
[1723261324240,0.00831,60497.0,60496.0,3.05752261]
[1723261324492,0.00831,60497.0,60496.0,3.16091516]
[1723261325463,0.00831,60497.0,60496.0,3.01254425]
[1723261325596,0.00831,60497.0,60496.0,3.01186709]
[1723261326996,0.00831,60497.0,60496.0,2.93176709]
[1723261327243,0.00831,60497.0,60496.0,2.97682218]
[1723261327656,0.00831,60497.0,60496.0,2.9317691]
[1723261328669,0.00831,60497.0,60496.0,2.93023168]
[1723261332153,0.00831,60497.0,60496.0,2.76954857]
[1723261332272,0.00831,60497.0,60496.0,2.93021024]
[1723261332494,0.00831,60497.0,60496.0,3.61698547]
[1723261332692,0.00831,60497.0,60496.0,3.10004024]
[1723261333566,0.00831,60497.0,60496.0,3.08604024]
[1723261334170,0.00831,60497.0,60496.0,3.07204024]
[1723261334566,0.00831,60497.0,60496.0,3.08604024]
[1723261335216,0.00831,60497.0,60496.0,3.10004024]
[1723261336167,0.00831,60497.0,60496.0,3.10057113]
[1723261336790,0.00831,60497.0,60496.0,3.06944113]
[1723261337630,0.00831,60497.0,60496.0,3.05404112]
[1723261337829,0.00831,60497.0,60496.0,3.40064112]
[1723261338601,0.00831,60497.0,60496.0,3.38664112]
[1723261339047,0.00831,60497.0,60496.0,3.40140528]
[1723261339358,0.00831,60497.0,60496.0,3.38740528]
[1723261339716,0.00831,60497.0,60496.0,3.39740528]
[1723261339958,0.00831,60497.0,60496.0,3.41140528]
[1723261341239,0.00831,60497.0,60496.0,3.57866238]
[1723261342020,0.00831,60497.0,60496.0,3.56466238]
[1723261342239,0.00831,60497.0,60496.0,3.57866238]
[1723261342447,0.00831,60497.0,60496.0,4.0494853]
[1723261342578,0.00831,60497.0,60496.0,4.34133776]
[1723261342781,0.00831,60497.0,60496.0,4.32733776]
[1723261343178,0.00661,60501.0,60500.0,1.487601]
[1723261343384,0.00661,60501.0,60500.0,3.12575658]
[1723261343667,0.00661,60501.0,60500.0,3.26605658]
[1723261343812,0.00661,60501.0,60500.0,3.26805658]
[1723261344770,0.00661,60501.0,60500.0,3.28205658]
[1723261345820,0.00661,60501.0,60500.0,3.28005658]
[1723261346012,0.00661,60501.0,60500.0,3.12733287]
[1723261346331,0.00661,60501.0,60500.0,3.15535106]
[1723261346578,0.00661,60501.0,60500.0,3.14135106]
[1723261347160,0.00661,60501.0,60500.0,3.12735106]
[1723261347362,0.00661,60501.0,60500.0,3.14135111]
[1723261347574,0.00661,60501.0,60500.0,3.15535111]
[1723261347769,0.00661,60501.0,60500.0,3.14135111]
[1723261347965,0.00661,60501.0,60500.0,2.76235547]
[1723261348163,0.00661,60501.0,60500.0,2.92452587]
[1723261348565,0.00661,60501.0,60500.0,3.14032388]
[1723261348966,0.00661,60501.0,60500.0,3.28262388]
[1723261349706,0.00661,60501.0,60500.0,3.29662388]
[1723261350050,0.00661,60501.0,60500.0,3.30628708]
[1723261350281,0.00661,60501.0,60500.0,2.77017368]
[1723261350500,0.00661,60501.0,60500.0,3.29254174]
[1723261350715,0.00661,60501.0,60500.0,3.30454174]
[1723261353949,0.00661,60501.0,60500.0,3.30404975]
[1723261354150,0.00661,60501.0,60500.0,3.27604975]
[1723261354526,0.00661,60501.0,60500.0,3.29004975]
[1723261354929,0.00661,60501.0,60500.0,3.29204975]
[1723261355155,0.00661,60501.0,60500.0,3.29004975]
[1723261355498,0.00661,60501.0,60500.0,3.30604975]
[1723261355699,0.00661,60501.0,60500.0,3.29004975]
[1723261355893,0.00661,60501.0,60500.0,3.27604975]
[1723261356160,0.00661,60501.0,60500.0,3.33714975]
[1723261356605,0.00661,60501.0,60500.0,3.32321699]
[1723261357005,0.00661,60501.0,60500.0,3.32413109]
[1723261357202,0.00661,60501.0,60500.0,3.31013109]
[1723261357543,0.00661,60501.0,60500.0,3.32469866]
[1723261357928,0.00661,60501.0,60500.0,3.32469521]
[1723261359084,0.00661,60501.0,60500.0,3.32669521]
[1723261359369,0.00661,60501.0,60500.0,3.33869521]
[1723261359752,0.00661,60501.0,60500.0,3.34069521]
[1723261360945,0.00661,60501.0,60500.0,3.3407148]
[1723261362219,0.00661,60501.0,60500.0,3.3267148]
[1723261362915,0.00661,60501.0,60500.0,3.3387148]
[1723261364385,0.00661,60501.0,60500.0,3.33877832]
[1723261367531,0.00661,60501.0,60500.0,3.30567832]
[1723261367743,0.00661,60501.0,60500.0,2.68988778]
[1723261367952,0.00661,60501.0,60500.0,3.19843613]
[1723261368347,0.00661,60501.0,60500.0,3.19832941]
[1723261368843,0.00661,60501.0,60500.0,3.52890741]
[1723261369037,0.00661,60501.0,60500.0,3.19832941]
[1723261369479,0.00661,60501.0,60500.0,3.19767644]
[1723261369827,0.00661,60501.0,60500.0,3.19967644]
[1723261370045,0.07011,60501.0,60500.0,3.19767644]
[1723261370831,0.00661,60501.0,60500.0,3.19767644]
[1723261371432,0.00661,60501.0,60500.0,3.3420568]
[1723261376280,0.00661,60501.0,60500.0,3.3440568]
[1723261376708,0.00661,60501.0,60500.0,3.2796568]
[1723261377045,0.00661,60501.0,60500.0,3.2776568]
[1723261378109,0.00661,60501.0,60500.0,3.27773154]
[1723261378751,0.00661,60501.0,60500.0,3.2785417]
[1723261380275,0.00661,60501.0,60500.0,3.44575001]
[1723261380474,0.00661,60501.0,60500.0,3.2785417]
[1723261381107,0.00661,60501.0,60500.0,3.27468956]
[1723261381309,0.00661,60501.0,60500.0,3.44616593]
[1723261382311,0.00661,60501.0,60500.0,3.44816593]
[1723261383100,0.00661,60501.0,60500.0,3.44798808]
[1723261383296,0.00661,60501.0,60500.0,3.28077977]
[1723261383730,0.00661,60501.0,60500.0,3.27877977]
[1723261383861,0.00661,60501.0,60500.0,3.44607497]
[1723261384102,0.00661,60501.0,60500.0,2.814685]
[1723261384376,0.00661,60501.0,60500.0,3.27869295]
[1723261384553,0.00661,60501.0,60500.0,3.44598815]